fUSD/lending_fUSD_20250217
["ID","MTS","AMOUNT","RATE_DAILY","PERIOD"]
[353425602,1739824239803,-400.83,0.0001386,2]
[353425604,1739824239812,-500.0,0.0001386,2]
[353425606,1739824239822,-500.0,0.0001386,2]
[353425608,1739824239831,-500.0,0.0001386,2]
[353425610,1739824239840,-500.0,0.0001386,2]
[353425612,1739824239849,-500.0,0.0001386,2]
[353425614,1739824239861,-500.0,0.0001386,2]
[353425616,1739824239871,-500.0,0.0001386,2]
[353425618,1739824239880,-399.93,0.0001386,2]
[353425620,1739824239889,-366.54,0.0001386,2]
[353425622,1739824239899,-500.0,0.0001386,2]
[353425624,1739824239909,-500.0,0.0001386,2]
[353425626,1739824239919,-500.0,0.0001386,2]
[353425628,1739824239928,-500.0,0.0001386,2]
[353425630,1739824239938,-500.0,0.0001386,2]
[353425632,1739824239949,-500.0,0.0001386,2]
[353425634,1739824239958,-500.0,0.0001386,2]
[353425636,1739824239967,-500.0,0.0001386,2]
[353425638,1739824239976,-500.0,0.0001386,2]
[353425640,1739824239986,-301.08,0.0001386,2]
[353425642,1739824239996,-500.0,0.0001386,2]
[353425644,1739824240005,-500.0,0.0001386,2]
[353425646,1739824240014,-500.0,0.0001386,2]
[353425648,1739824240023,-500.0,0.0001386,2]
[353425650,1739824240032,-500.0,0.0001386,2]
[353425652,1739824240041,-500.0,0.0001386,2]
[353425654,1739824240051,-500.0,0.0001386,2]
[353425656,1739824240060,-500.0,0.0001386,2]
[353425658,1739824240070,-500.0,0.0001386,2]
[353425660,1739824240079,-567.94,0.0001386,2]
[353425662,1739824240088,-500.0,0.0001386,2]
[353425665,1739824240098,-1070.83,0.0001386,2]
[353425668,1739824240108,-768.43,0.0001386,2]
[353425671,1739824240118,-695.82,0.0001386,2]
[353425674,1739824240127,-500.0,0.0001386,2]
[353425677,1739824240136,-500.0,0.0001386,2]
[353425680,1739824240146,-685.81,0.0001386,2]
[353425683,1739824240156,-647.34,0.0001386,2]
[353425685,1739824240165,-500.0,0.0001386,2]
[353425687,1739824240174,-983.87,0.0001386,2]
[353425689,1739824240183,-937.42,0.0001386,2]
[353425691,1739824240192,-500.0,0.0001386,2]
[353425694,1739824240201,-500.0,0.0001386,2]
[353425697,1739824240211,-685.53,0.0001386,2]
[353425699,1739824240220,-500.0,0.0001386,2]
[353425701,1739824240230,-795.398462,0.0001386,2]
[353425703,1739824240239,-816.26,0.0001386,2]
[353425706,1739824240248,-500.0,0.0001386,2]
[353425709,1739824240257,-500.0,0.0001386,2]
[353425711,1739824240267,-743.63,0.0001386,2]
[353425714,1739824240276,-670.47,0.0001386,2]
[353425716,1739824240285,-500.0,0.0001386,2]
[353425717,1739824240295,-500.0,0.0001386,2]
[353425720,1739824240304,-591.42,0.0001386,2]
[353425722,1739824240315,-500.0,0.0001386,2]
[353425724,1739824240325,-500.0,0.0001386,2]
[353425726,1739824240334,-654.54,0.0001386,2]
[353425728,1739824240343,-732.62,0.0001386,2]
[353425730,1739824240354,-971.37,0.0001386,2]
[353425732,1739824240366,-567.58,0.0001386,2]
[353425734,1739824240376,-1065.05,0.0001386,2]
[353425736,1739824240386,-670.65,0.0001386,2]
[353425738,1739824240395,-876.32,0.0001386,2]
[353425740,1739824240406,-500.0,0.0001386,2]
[353425742,1739824240416,-500.0,0.0001386,2]
[353425744,1739824240425,-548.070799,0.0001386,2]
[353425746,1739824240438,-500.0,0.0001386,2]
[353425748,1739824240449,-1119.09,0.0001386,2]
[353425750,1739824240458,-517.16,0.0001386,2]
[353425752,1739824240467,-975.56,0.0001386,2]
[353425754,1739824240477,-500.0,0.0001386,2]
[353425755,1739824240487,-500.0,0.0001386,2]
[353425756,1739824240496,-500.0,0.0001386,2]
[353425757,1739824240506,-1251.34,0.0001386,2]
[353425758,1739824240515,-513.1,0.0001386,2]
[353425759,1739824240525,-500.0,0.0001386,2]
[353425760,1739824240534,-500.0,0.0001386,2]
[353425761,1739824240545,-755.73,0.0001386,2]
[353425762,1739824240554,-2432.3,0.0001386,2]
[353425763,1739824240563,-500.0,0.0001386,2]
[353425764,1739824240572,-500.0,0.0001386,2]
[353425765,1739824240581,-388.78,0.0001386,2]
[353425767,1739824240590,-500.0,0.0001386,2]
[353425769,1739824240600,-617.48,0.0001386,2]
[353425771,1739824240611,-980.53,0.0001386,2]
[353425773,1739824240620,-500.0,0.0001386,2]
[353425775,1739824240630,-1151.84,0.0001386,2]
[353425777,1739824240640,-500.0,0.0001386,2]
[353425779,1739824240649,-651.63,0.0001386,2]
[353425781,1739824240659,-500.0,0.0001386,2]
[353425783,1739824240668,-1462.81,0.0001386,2]
[353425785,1739824240677,-500.0,0.0001386,2]
[353425787,1739824240687,-500.0,0.0001386,2]
[353425789,1739824240696,-500.0,0.0001386,2]
[353425791,1739824240706,-500.0,0.0001386,2]
[353425793,1739824240715,-842.52,0.0001386,2]
[353425795,1739824240725,-500.0,0.0001386,2]
[353425797,1739824240736,-500.0,0.0001386,2]
[353425799,1739824240745,-934.89,0.0001386,2]
[353425801,1739824240755,-566.1,0.0001386,2]
[353425803,1739824240765,-500.0,0.0001386,2]
[353425805,1739824240774,-500.0,0.0001386,2]
[353425807,1739824240784,-500.0,0.0001386,2]
[353425809,1739824240794,-985.31,0.0001386,2]
[353425811,1739824240803,-500.0,0.0001386,2]
[353425813,1739824240812,-500.0,0.0001386,2]
[353425815,1739824240822,-628.67,0.0001386,2]
[353425817,1739824240832,-500.0,0.0001386,2]
[353425819,1739824240841,-500.0,0.0001386,2]
[353425821,1739824240851,-500.0,0.0001386,2]
[353425824,1739824240862,-500.0,0.0001386,2]
[353425826,1739824240872,-500.0,0.0001386,2]
[353425828,1739824240881,-500.0,0.0001386,2]
[353425830,1739824240891,-500.0,0.0001386,2]
[353425832,1739824240900,-500.0,0.0001386,2]
[353425834,1739824240910,-500.0,0.0001386,2]
[353425836,1739824240919,-500.0,0.0001386,2]
[353425838,1739824240929,-500.0,0.0001386,2]
[353425840,1739824240939,-500.0,0.0001386,2]
[353425842,1739824240949,-890.88,0.0001386,2]
[353425844,1739824240958,-500.0,0.0001386,2]
[353425846,1739824240968,-500.0,0.0001386,2]
[353425848,1739824240978,-500.0,0.0001386,2]
[353425850,1739824240987,-500.0,0.0001386,2]
[353425852,1739824240997,-500.0,0.00013861,2]
[353425854,1739824241006,-500.0,0.00013861,2]
[353425856,1739824241016,-500.0,0.00013861,2]
[353425858,1739824241026,-181.42,0.00013861,2]
[353425860,1739824241035,-500.0,0.00013861,2]
[353425862,1739824241045,-500.0,0.00013861,2]
[353425864,1739824241054,-500.0,0.00013861,2]
[353425866,1739824241064,-183.33728427,0.00013861,2]
[353425868,1739824241073,-495.4471,0.00013861,2]
[353425870,1739824241082,-500.0,0.00013861,2]
[353425872,1739824241091,-500.0,0.00013861,2]
[353425874,1739824241101,-328.54,0.00013861,2]
[353425876,1739824241113,-164.98,0.00013861,2]
[353425878,1739824241123,-316.33073635,0.00013861,2]
[353425880,1739824241132,-500.0,0.00013861,2]
[353425882,1739824241142,-500.0,0.00013861,2]
[353425885,1739824241154,-587.33,0.00013861,2]
[353425887,1739824241163,-500.0,0.00013861,2]
[353425888,1739824241173,-553.79,0.00013861,2]
[353425891,1739824241183,-182.99,0.00013861,2]
[353425893,1739824241192,-500.0,0.00013861,2]
[353425894,1739824241202,-500.0,0.00013861,2]
[353425897,1739824241212,-500.0,0.00013861,2]
[353425899,1739824241222,-500.0,0.00013861,2]
[353425901,1739824241231,-500.0,0.00013861,2]
[353425903,1739824241241,-500.0,0.00013861,2]
[353425905,1739824241251,-500.0,0.00013861,2]
[353425907,1739824241260,-500.0,0.00013861,2]
[353425909,1739824241270,-500.0,0.00013861,2]
[353425911,1739824241279,-500.0,0.00013861,2]
[353425914,1739824241289,-500.0,0.00013861,2]
[353425917,1739824241299,-500.0,0.00013861,2]
[353425920,1739824241308,-500.0,0.00013861,2]
[353425922,1739824241317,-500.0,0.00013861,2]
[353425924,1739824241327,-581.83,0.00013861,2]
[353425926,1739824241336,-500.0,0.00013861,2]
[353425928,1739824241346,-500.0,0.00013861,2]
[353425930,1739824241357,-242.76,0.00013861,2]
[353425932,1739824241368,-320.11,0.00013861,2]
[353425934,1739824241378,-500.0,0.00013861,2]
[353425936,1739824241387,-500.0,0.00013861,2]
[353425938,1739824241397,-500.0,0.00013861,7]
[353425940,1739824241406,-860.15,0.00013861,2]
[353425942,1739824241416,-2183.23,0.00013861,2]
[353425944,1739824241425,-500.0,0.00013861,2]
[353425946,1739824241436,-500.0,0.00013861,2]
[353425948,1739824241445,-500.0,0.00013861,2]
[353425950,1739824241455,-500.0,0.00013861,2]
[353425952,1739824241464,-508.23,0.00013861,2]
[353425954,1739824241473,-500.0,0.00013861,2]
[353425956,1739824241483,-566.08,0.00013861,2]
[353425958,1739824241492,-661.86,0.00013861,2]
[353425960,1739824241501,-466.22,0.00013861,2]
[353425962,1739824241511,-500.0,0.00013861,2]
[353425964,1739824241520,-500.0,0.00013861,2]
[353425966,1739824241530,-500.0,0.00013861,2]
[353425968,1739824241539,-500.0,0.00013861,2]
[353425970,1739824241549,-631.5,0.00013861,2]
[353425972,1739824241558,-151.0,0.00013861,2]
[353425974,1739824241567,-151.0,0.00013861,2]
[353425976,1739824241577,-563.04,0.00013862,2]
[353425978,1739824241587,-500.0,0.00013862,2]
[353425980,1739824241597,-150.0,0.00013862,2]
[353425982,1739824241607,-167.0,0.00013863,2]
[353425984,1739824241617,-245.39,0.00013863,2]
[353425986,1739824241626,-167.81251703,0.00013863,2]
[353425988,1739824241636,-222.56,0.00013863,2]
[353425990,1739824241646,-533.89,0.00013863,2]
[353425992,1739824241655,-500.0,0.00013863,2]
[353425994,1739824241665,-500.0,0.00013863,2]
[353425996,1739824241675,-500.0,0.00013863,2]
[353425999,1739824241684,-500.0,0.00013863,2]
[353426001,1739824241694,-500.0,0.00013863,2]
[353426003,1739824241703,-500.0,0.00013863,2]
[353426005,1739824241713,-500.0,0.00013863,2]
[353426007,1739824241722,-500.0,0.00013863,2]
[353426009,1739824241731,-500.0,0.00013863,2]
[353426011,1739824241741,-500.0,0.00013863,2]
[353426013,1739824241750,-500.0,0.00013863,2]
[353426015,1739824241760,-1007.22974772,0.00013863,2]
[353426017,1739824241770,-500.0,0.00013863,2]
[353426019,1739824241779,-500.0,0.00013863,2]
[353426021,1739824241788,-500.0,0.00013863,2]
[353426023,1739824241798,-500.0,0.00013863,2]
[353426025,1739824241807,-500.0,0.00013863,2]
[353426027,1739824241816,-500.0,0.00013863,2]
[353426029,1739824241826,-271.24,0.00013863,2]
[353426031,1739824241835,-500.0,0.00013863,2]
[353426033,1739824241845,-434.02,0.00013863,2]
[353426035,1739824241854,-500.0,0.00013863,2]
[353426037,1739824241864,-500.0,0.00013863,2]
[353426039,1739824241874,-500.0,0.00013863,2]
[353426041,1739824241884,-500.0,0.00013863,2]
[353426063,1739824242054,-500.0,0.00013863,2]
[353426066,1739824242093,-500.0,0.00013863,2]
[353426068,1739824242102,-500.0,0.00013863,2]
[353426070,1739824242113,-500.0,0.00013863,2]
[353426072,1739824242122,-500.0,0.00013863,2]
[353426074,1739824242131,-500.0,0.00013863,2]
[353426076,1739824242140,-230.81261,0.00013863,2]
[353426078,1739824242149,-230.81261,0.00013863,2]
[353426080,1739824242159,-590.81,0.00013863,2]
[353426082,1739824242168,-189.682133,0.00013863,2]
[353426084,1739824242177,-151.0,0.00013863,2]
[353426086,1739824242186,-151.0,0.00013863,2]
[353426087,1739824242195,-189.682133,0.00013863,2]
[353426089,1739824242206,-577.67,0.00013863,2]
[353426091,1739824242215,-1001.9,0.00013863,2]
[353426093,1739824242225,-587.36,0.00013863,2]
[353426095,1739824242234,-151.0,0.00013863,2]
[353426098,1739824242244,-1071.78,0.00013863,2]
[353426100,1739824242254,-977.2,0.00013863,2]
[353426102,1739824242263,-909.38,0.00013863,2]
[353426104,1739824242272,-773.35,0.00013863,2]
[353426106,1739824242282,-500.0,0.00013863,2]
[353426108,1739824242291,-599.87,0.00013863,2]
[353426110,1739824242300,-500.0,0.00013863,2]
[353426112,1739824242309,-151.0,0.00013863,2]
[353426113,1739824242319,-1025.81,0.00013863,2]
[353426115,1739824242328,-1111.81,0.00013863,2]
[353426117,1739824242337,-151.0,0.00013863,2]
[353426119,1739824242346,-683.66,0.00013863,2]
[353426122,1739824242361,-500.0,0.00013863,2]
[353426124,1739824242371,-223.701866,0.00013863,2]
[353426126,1739824242381,-151.0,0.00013863,2]
[353426128,1739824242390,-556.062407,0.00013863,2]
[353426130,1739824242399,-151.0,0.00013863,2]
[353426132,1739824242410,-223.701866,0.00013863,2]
[353426134,1739824242419,-556.062407,0.00013863,2]
[353426136,1739824242429,-1058.99,0.00013863,2]
[353426137,1739824242439,-151.0,0.00013863,2]
[353426140,1739824242449,-500.0,0.00013863,2]
[353426141,1739824242458,-500.0,0.00013863,2]
[353426143,1739824242467,-500.0,0.00013863,2]
[353426144,1739824242476,-765.72,0.00013863,2]
[353426145,1739824242485,-500.0,0.00013863,2]
[353426146,1739824242494,-151.0,0.00013863,2]
[353426147,1739824242503,-1329.95,0.00013863,2]
[353426148,1739824242512,-500.0,0.00013863,2]
[353426149,1739824242522,-500.0,0.00013863,2]
[353426150,1739824242531,-229.2,0.00013863,2]
[353426151,1739824242540,-552.86,0.00013863,2]
[353426152,1739824242549,-562.76049765,0.00013863,2]
[353426153,1739824242557,-150.0,0.00013877,2]
[353426155,1739824242567,-150.0,0.00013881,2]
[353426157,1739824242576,-1346.76460986,0.00013885,2]
[353426159,1739824242586,-163.37788915,0.0001389,2]
[353426161,1739824242595,-2000.0,0.000139,2]
[353426163,1739824242604,-2000.0,0.000139,2]
[353426165,1739824242615,-8000.0,0.000139,5]
[353426167,1739824242624,-320.47580011,0.00013909,2]
[353426169,1739824242634,-150.0,0.00013916,2]
[353426171,1739824242644,-152.39263306,0.00013932,2]
[353426173,1739824242653,-150.0,0.00013934,2]
[353426175,1739824242662,-1070.83,0.00013942,2]
[353426177,1739824242672,-695.82,0.00013942,2]
[353426179,1739824242681,-685.81,0.00013942,2]
[353426181,1739824242691,-500.0,0.00013942,2]
[353426183,1739824242701,-937.42,0.00013942,2]
[353426185,1739824242710,-500.0,0.00013942,2]
[353426187,1739824242720,-229.82,0.00013942,2]
[353426189,1739824242729,-795.398462,0.00013942,2]
[353426191,1739824242738,-816.26,0.00013942,2]
[353426193,1739824242748,-500.0,0.00013942,2]
[353426195,1739824242757,-591.42,0.00013942,2]
[353426197,1739824242766,-500.0,0.00013942,2]
[353426199,1739824242775,-732.62,0.00013942,2]
[353426201,1739824242785,-567.58,0.00013942,2]
[353426203,1739824242794,-670.65,0.00013942,2]
[353426205,1739824242804,-876.32,0.00013942,2]
[353426208,1739824242814,-548.070799,0.00013942,2]
[353426209,1739824242823,-975.56,0.00013942,2]
[353426211,1739824242832,-500.0,0.00013942,2]
[353426213,1739824242841,-513.1,0.00013942,2]
[353426215,1739824242851,-2432.3,0.00013942,2]
[353426217,1739824242861,-500.0,0.00013942,2]
[353426219,1739824242870,-617.48,0.00013942,2]
[353426221,1739824242879,-1151.84,0.00013942,2]
[353426223,1739824242889,-651.63,0.00013942,2]
[353426225,1739824242898,-1462.81,0.00013942,2]
[353426227,1739824242907,-500.0,0.00013942,2]
[353426229,1739824242917,-934.89,0.00013942,2]
[353426231,1739824242926,-566.1,0.00013942,2]
[353426233,1739824242935,-985.31,0.00013942,2]
[353426235,1739824242945,-628.67,0.00013942,2]
[353426237,1739824242954,-500.0,0.00013942,2]
[353426239,1739824242963,-890.88,0.00013942,2]
[353426241,1739824242974,-500.0,0.00013943,2]
[353426243,1739824242983,-500.0,0.00013943,2]
[353426245,1739824242992,-500.0,0.00013943,2]
[353426247,1739824243001,-500.0,0.00013943,2]
[353426249,1739824243010,-494.82,0.00013943,2]
[353426251,1739824243019,-500.0,0.00013943,2]
[353426253,1739824243029,-513.41,0.00013943,2]
[353426255,1739824243038,-500.0,0.00013943,2]
[353426257,1739824243048,-500.0,0.00013943,2]
[353426260,1739824243057,-242.64,0.00013943,2]
[353426264,1739824243066,-500.0,0.00013943,2]
[353426267,1739824243075,-595.94,0.00013943,2]
[353426270,1739824243084,-395.37,0.00013943,2]
[353426273,1739824243094,-243.79,0.00013943,2]
[353426276,1739824243103,-539.64,0.00013943,2]
[353426279,1739824243113,-500.0,0.00013943,2]
[353426282,1739824243123,-500.0,0.00013943,2]
[353426284,1739824243131,-584.36956502,0.00013943,2]
[353426286,1739824243140,-360.94,0.00013943,2]
[353426288,1739824243150,-155.5,0.00013943,2]
[353426290,1739824243159,-500.0,0.00013943,2]
[353426292,1739824243168,-500.0,0.00013943,2]
[353426294,1739824243177,-500.0,0.00013943,2]
[353426296,1739824243187,-500.0,0.00013943,2]
[353426298,1739824243196,-294.55,0.00013943,2]
[353426300,1739824243205,-583.82,0.00013943,2]
[353426302,1739824243215,-585.26,0.00013943,2]
[353426304,1739824243224,-500.0,0.00013943,2]
[353426306,1739824243234,-295.81,0.00013943,2]
[353426309,1739824243243,-500.0,0.00013943,2]
[353426311,1739824243252,-500.0,0.00013943,2]
[353426314,1739824243261,-500.0,0.00013943,2]
[353426316,1739824243270,-500.0,0.00013943,2]
[353426318,1739824243280,-500.0,0.00013943,2]
[353426320,1739824243289,-500.0,0.00013943,2]
[353426322,1739824243299,-500.0,0.00013943,2]
[353426324,1739824243308,-500.0,0.00013943,2]
[353426326,1739824243317,-500.0,0.00013943,2]
[353426328,1739824243326,-500.0,0.00013943,2]
[353426330,1739824243336,-500.0,0.00013943,2]
[353426332,1739824243345,-500.0,0.00013943,2]
[353426334,1739824243358,-198.84,0.00013943,2]
[353426336,1739824243368,-500.0,0.00013943,2]
[353426338,1739824243378,-256.13,0.00013943,2]
[353426340,1739824243387,-500.0,0.00013943,2]
[353426342,1739824243396,-500.0,0.00013943,2]
[353426344,1739824243407,-500.0,0.00013943,2]
[353426346,1739824243416,-500.0,0.00013943,2]
[353426348,1739824243425,-500.0,0.00013943,2]
[353426350,1739824243435,-500.0,0.00013943,2]
[353426352,1739824243444,-500.0,0.00013943,2]
[353426354,1739824243453,-500.0,0.00013943,2]
[353426356,1739824243464,-500.0,0.00013943,2]
[353426358,1739824243473,-567.94,0.00013943,2]
[353426360,1739824243483,-500.0,0.00013943,2]
[353426362,1739824243492,-768.43,0.00013943,2]
[353426364,1739824243501,-500.0,0.00013943,2]
[353426366,1739824243511,-500.0,0.00013943,2]
[353426368,1739824243520,-647.34,0.00013943,2]
[353426370,1739824243529,-983.87,0.00013943,2]
[353426372,1739824243539,-500.0,0.00013943,2]
[353426373,1739824243547,-685.53,0.00013943,2]
[353426375,1739824243557,-500.0,0.00013943,2]
[353426377,1739824243566,-743.63,0.00013943,2]
[353426379,1739824243575,-670.47,0.00013943,2]
[353426381,1739824243584,-500.0,0.00013943,2]
[353426383,1739824243594,-500.0,0.00013943,2]
[353426385,1739824243603,-500.0,0.00013943,2]
[353426387,1739824243614,-654.54,0.00013943,2]
[353426389,1739824243624,-971.37,0.00013943,2]
[353426390,1739824243635,-1065.05,0.00013943,2]
[353426392,1739824243644,-500.0,0.00013943,2]
[353426394,1739824243653,-500.0,0.00013943,2]
[353426396,1739824243662,-1119.09,0.00013943,2]
[353426398,1739824243672,-500.0,0.00013943,2]
[353426400,1739824243681,-500.0,0.00013943,2]
[353426402,1739824243690,-1251.34,0.00013943,2]
[353426404,1739824243700,-500.0,0.00013943,2]
[353426406,1739824243709,-755.73,0.00013943,2]
[353426408,1739824243719,-500.0,0.00013943,2]
[353426410,1739824243729,-500.0,0.00013943,2]
[353426412,1739824243738,-980.53,0.00013943,2]
[353426414,1739824243748,-500.0,0.00013943,2]
[353426416,1739824243757,-500.0,0.00013943,2]
[353426419,1739824243766,-500.0,0.00013943,2]
[353426422,1739824243776,-500.0,0.00013943,2]
[353426425,1739824243785,-500.0,0.00013943,2]
[353426428,1739824243794,-842.52,0.00013943,2]
[353426430,1739824243804,-500.0,0.00013943,2]
[353426432,1739824243814,-500.0,0.00013943,2]
[353426434,1739824243823,-500.0,0.00013943,2]
[353426436,1739824243834,-500.0,0.00013943,2]
[353426438,1739824243844,-500.0,0.00013943,2]
[353426440,1739824243854,-500.0,0.00013943,2]
[353426442,1739824243864,-500.0,0.00013943,2]
[353426444,1739824243873,-500.0,0.00013943,2]
[353426446,1739824243883,-500.0,0.00013943,2]
[353426448,1739824243892,-500.0,0.00013943,2]
[353426450,1739824243902,-500.0,0.00013943,2]
[353426452,1739824243911,-500.0,0.00013943,2]
[353426454,1739824243921,-500.0,0.00013943,2]
[353426456,1739824243930,-500.0,0.00013943,2]
[353426458,1739824243940,-500.0,0.00013943,2]
[353426460,1739824243949,-500.0,0.00013943,2]
[353426462,1739824243959,-500.0,0.00013943,2]
[353426464,1739824243968,-500.0,0.00013943,2]
[353426466,1739824243980,-500.0,0.00013943,2]
[353426468,1739824243990,-500.0,0.00013943,2]
[353426470,1739824243999,-500.0,0.00013943,2]
[353426472,1739824244009,-500.0,0.00013943,2]
[353426474,1739824244019,-500.0,0.00013944,2]
[353426476,1739824244028,-500.0,0.00013944,2]
[353426478,1739824244038,-500.0,0.00013944,2]
[353426480,1739824244048,-179.01671214,0.00013944,2]
[353426482,1739824244058,-270.75,0.00013944,2]
[353426484,1739824244067,-500.0,0.00013944,2]
[353426486,1739824244076,-500.0,0.00013944,2]
[353426488,1739824244086,-500.0,0.00013944,2]
[353426490,1739824244095,-500.0,0.00013944,2]
[353426492,1739824244105,-515.84302968,0.00013944,2]
[353426494,1739824244117,-500.0,0.00013944,2]
[353426496,1739824244127,-500.0,0.00013944,2]
[353426498,1739824244136,-275.18,0.00013944,2]
[353426500,1739824244146,-500.0,0.00013944,2]
[353426502,1739824244159,-289.34,0.00013944,2]
[353426504,1739824244169,-500.0,0.00013944,2]
[353426506,1739824244180,-386.07,0.00013944,2]
[353426508,1739824244189,-184.42,0.00013944,2]
[353426510,1739824244199,-610.53,0.00013944,2]
[353426512,1739824244208,-500.0,0.00013944,2]
[353426514,1739824244218,-420.6,0.00013944,2]
[353426516,1739824244227,-500.0,0.00013944,2]
[353426518,1739824244236,-500.0,0.00013944,2]
[353426520,1739824244245,-313.45,0.00013944,2]
[353426522,1739824244254,-303.87,0.00013944,2]
[353426524,1739824244263,-379.07,0.00013944,2]
[353426526,1739824244273,-500.0,0.00013944,2]
[353426528,1739824244283,-500.0,0.00013944,2]
[353426530,1739824244293,-563.04,0.00013944,2]
[353426532,1739824244303,-860.15,0.00013944,2]
[353426534,1739824244312,-2183.23,0.00013944,2]
[353426536,1739824244322,-500.0,0.00013944,2]
[353426538,1739824244331,-500.0,0.00013944,2]
[353426539,1739824244341,-500.0,0.00013944,2]
[353426540,1739824244395,-500.0,0.00013944,2]
[353426541,1739824244406,-500.0,0.00013944,2]
[353426542,1739824244416,-500.0,0.00013944,2]
[353426543,1739824244426,-566.08,0.00013944,2]
[353426545,1739824244437,-661.86,0.00013944,2]
[353426547,1739824244446,-500.0,0.00013944,2]
[353426549,1739824244455,-500.0,0.00013944,2]
[353426551,1739824244465,-500.0,0.00013944,2]
[353426553,1739824244474,-500.0,0.00013944,2]
[353426555,1739824244483,-631.5,0.00013944,2]
[353426557,1739824244492,-500.0,0.00013944,2]
[353426559,1739824244501,-1000.0,0.00013944,2]
[353426561,1739824244510,-533.55,0.00013944,2]
[353426562,1739824244519,-503.68,0.00013945,2]
[353426564,1739824244529,-319.69,0.00013945,2]
[353426566,1739824244538,-500.0,0.00013945,2]
[353426568,1739824244548,-500.0,0.00013945,2]
[353426570,1739824244556,-500.0,0.00013945,2]
[353426572,1739824244566,-500.0,0.00013945,2]
[353426574,1739824244576,-500.0,0.00013945,2]
[353426576,1739824244584,-197.38,0.00013945,2]
[353426578,1739824244593,-500.0,0.00013945,2]
[353426580,1739824244602,-500.0,0.00013945,2]
[353426582,1739824244612,-500.0,0.00013945,2]
[353426584,1739824244624,-500.0,0.00013945,2]
[353426586,1739824244634,-500.0,0.00013945,2]
[353426588,1739824244643,-500.0,0.00013945,2]
[353426590,1739824244652,-500.0,0.00013945,2]
[353426592,1739824244662,-500.0,0.00013945,2]
[353426594,1739824244671,-500.0,0.00013945,2]
[353426596,1739824244680,-500.0,0.00013945,2]
[353426599,1739824244690,-500.0,0.00013945,2]
[353426601,1739824244700,-500.0,0.00013945,2]
[353426602,1739824244709,-500.0,0.00013945,2]
[353426604,1739824244719,-500.0,0.00013945,2]
[353426607,1739824244728,-500.0,0.00013945,2]
[353426609,1739824244739,-500.0,0.00013945,2]
[353426610,1739824244748,-500.0,0.00013945,2]
[353426613,1739824244758,-500.0,0.00013945,2]
[353426615,1739824244768,-500.0,0.00013945,2]
[353426617,1739824244779,-500.0,0.00013945,2]
[353426619,1739824244788,-590.81,0.00013945,2]
[353426621,1739824244797,-577.67,0.00013945,2]
[353426623,1739824244806,-1001.9,0.00013945,2]
[353426624,1739824244815,-587.36,0.00013945,2]